fUSD/lending_fUSD_20260427
["ID","MTS","AMOUNT","RATE_DAILY","PERIOD"]
[421246861,1777287123842,-500.0,0.00035616,120]
[421246862,1777287123853,-1344.25,0.00035616,120]
[421246863,1777287123864,-500.0,0.00035616,30]
[421246864,1777287123875,-516.73203125,0.00035616,120]
[421246865,1777287123887,-916.78,0.00035616,120]
[421246866,1777287123899,-500.0,0.00035616,60]
[421246867,1777287123910,-1345.97,0.00035616,120]
[421246868,1777287123922,-1078.03,0.00035616,120]
[421246869,1777287123933,-500.0,0.00035616,120]
[421246870,1777287123945,-500.0,0.00035616,14]
[421246871,1777287123956,-947.63,0.00035616,120]
[421246872,1777287123968,-549.91,0.00035616,120]
[421246873,1777287123979,-500.0,0.00035616,120]
[421246874,1777287123991,-748.29,0.00035616,120]
[421246875,1777287124003,-1742.02,0.00035616,120]
[421246876,1777287124015,-980.13,0.00035616,120]
[421246877,1777287124026,-547.89,0.00035616,120]
[421246878,1777287124037,-405.38197226,0.00035616,120]
[421246879,1777287124048,-500.0,0.00035616,120]
[421246880,1777287124059,-808.71,0.00035616,120]
[421246881,1777287124071,-697.0,0.00035616,120]
[421246882,1777287124082,-698.74,0.00035616,120]
[421246883,1777287124093,-500.0,0.00035616,120]
[421246884,1777287124104,-861.18,0.00035616,120]
[421246885,1777287124115,-599.72,0.00035616,120]
[421246886,1777287124126,-971.15,0.00035616,120]
[421246887,1777287124996,-1898.91,0.00035616,120]
[421246888,1777287125028,-2008.02,0.00035616,120]
[421246889,1777287125037,-500.0,0.00035616,120]
[421246890,1777287125047,-546.88,0.00035616,120]
[421246891,1777287125057,-500.0,0.00035616,120]
[421246892,1777287125067,-500.0,0.00035616,120]
[421246893,1777287125077,-933.2,0.00035616,120]
[421246894,1777287125087,-923.43,0.00035616,120]
[421246895,1777287125096,-814.23,0.00035616,7]
[421246896,1777287125106,-500.0,0.00035616,120]
[421246897,1777287125115,-545.89,0.00035616,120]
[421246898,1777287125125,-500.0,0.00035616,120]
[421246899,1777287125135,-607.22,0.00035616,120]
[421246900,1777287125144,-500.0,0.00035616,120]
[421246901,1777287125153,-1022.01,0.00035616,120]
[421246902,1777287125163,-1403.37,0.00035616,120]
[421246903,1777287125172,-996.98,0.00035616,120]
[421246904,1777287125182,-500.0,0.00035616,120]
[421246905,1777287125192,-571.92,0.00035616,120]
[421246906,1777287125201,-500.0,0.00035616,120]
[421246907,1777287125211,-500.0,0.00035616,120]
[421246908,1777287125221,-500.0,0.00035616,120]
[421246909,1777287125231,-500.0,0.00035616,120]
[421246910,1777287125240,-500.0,0.00035616,120]
[421246911,1777287125250,-500.0,0.00035616,120]
[421246912,1777287125260,-2027.39,0.00035616,120]
[421246913,1777287125270,-502.25107967,0.00035616,120]
[421246914,1777287125280,-544.78,0.00035616,120]
[421246915,1777287125289,-1173.63,0.00035616,120]
[421246916,1777287125299,-580.92,0.00035616,120]
[421246917,1777287125309,-458.07354312,0.00035616,120]
[421246918,1777287125318,-500.0,0.00035616,120]
[421246919,1777287125328,-500.0,0.00035616,120]
[421246920,1777287125337,-957.19,0.00035616,120]
[421246921,1777287125346,-500.0,0.00035616,120]
[421246922,1777287125356,-500.0,0.00035616,120]
[421246923,1777287125365,-1129.42,0.00035616,120]
[421246924,1777287125375,-549.6,0.00035616,120]
[421246925,1777287125384,-500.0,0.00035616,120]
[421246926,1777287125394,-500.0,0.00035616,120]
[421246927,1777287125404,-500.0,0.00035616,120]
[421246928,1777287125414,-957.72,0.00035616,120]
[421246929,1777287125424,-500.0,0.00035616,120]
[421246930,1777287125434,-2273.93,0.00035616,120]
[421246931,1777287125443,-230.61845571,0.00035616,120]
[421246932,1777287125452,-531.34,0.00035616,120]
[421246933,1777287125462,-500.0,0.00035616,120]
[421246934,1777287125471,-500.0,0.00035616,120]
[421246935,1777287125481,-826.33,0.00035616,120]
[421246936,1777287125491,-544.61976864,0.00035616,120]
[421246937,1777287125500,-509.36,0.00035616,120]
[421246938,1777287125509,-500.0,0.00035616,120]
[421246939,1777287125520,-1144.83,0.00035616,120]
[421246940,1777287125530,-870.72,0.00035616,120]
[421246941,1777287125539,-500.0,0.00035616,120]
[421246942,1777287125549,-500.0,0.00035616,120]
[421246943,1777287125558,-1987.57,0.00035616,120]
[421246944,1777287125568,-1889.91,0.00035616,120]
[421246945,1777287125578,-997.41,0.00035616,120]
[421246946,1777287125588,-500.0,0.00035616,120]
[421246947,1777287125598,-645.47,0.00035616,120]
[421246948,1777287125608,-551.39,0.00035616,120]
[421246949,1777287125617,-607.71,0.00035616,120]
[421246950,1777287125627,-500.0,0.00035616,120]
[421246951,1777287125637,-1410.28,0.00035616,120]
[421246952,1777287125647,-1075.28,0.00035616,120]
[421246953,1777287125656,-512.2,0.00035616,120]
[421246954,1777287125665,-500.0,0.00035616,120]
[421246955,1777287125675,-571.84,0.00035616,120]
[421246956,1777287125684,-500.0,0.00035616,120]
[421246957,1777287125694,-670.88,0.00035616,120]
[421246958,1777287125704,-927.87,0.00035616,120]
[421246959,1777287125714,-733.46,0.00035616,120]
[421246960,1777287125723,-500.0,0.00035616,120]
[421246961,1777287125732,-845.56,0.00035616,120]
[421246962,1777287125742,-347.71263043,0.00035616,120]
[421246963,1777287125752,-500.0,0.00035616,120]
[421246964,1777287125762,-500.0,0.00035616,120]
[421246965,1777287125771,-1708.75,0.00035616,120]
[421246966,1777287125781,-500.0,0.00035616,120]
[421246967,1777287125791,-1389.02,0.00035616,120]
[421246968,1777287125801,-969.99,0.00035616,120]
[421246969,1777287125810,-721.4,0.00035616,120]
[421246970,1777287125820,-500.0,0.00035616,120]
[421246971,1777287125831,-832.2,0.00035616,120]
[421246972,1777287125840,-1256.96,0.00035616,120]
[421246973,1777287125850,-822.73,0.00035616,120]
[421246974,1777287125860,-1697.87,0.00035616,120]
[421246975,1777287125869,-725.79,0.00035616,120]
[421246976,1777287125879,-740.81,0.00035616,120]
[421246977,1777287125889,-767.5,0.00035616,120]
[421246978,1777287125898,-704.65,0.00035616,120]
[421246979,1777287125909,-874.64,0.00035616,120]
[421246980,1777287125919,-500.0,0.00035616,120]
[421246981,1777287125928,-500.0,0.00035616,120]
[421246982,1777287125938,-539.51,0.00035616,120]
[421246983,1777287125948,-1571.63,0.00035616,120]
[421246984,1777287125958,-3139.33,0.00035616,120]
[421246985,1777287125967,-631.89,0.00035616,120]
[421246986,1777287125976,-724.47,0.00035616,120]
[421246987,1777287125986,-830.35,0.00035616,120]
[421246988,1777287125995,-714.42,0.00035616,120]
[421246989,1777287126004,-529.87,0.00035616,120]
[421246990,1777287126015,-890.53,0.00035616,120]
[421246991,1777287126025,-633.28,0.00035616,120]
[421246992,1777287126034,-1042.08,0.00035616,120]
[421246993,1777287126044,-500.0,0.00035616,120]
[421246994,1777287126054,-1031.26,0.00035616,120]
[421246995,1777287126064,-500.0,0.00035616,120]
[421246996,1777287126075,-789.82,0.00035616,120]
[421246997,1777287126084,-500.0,0.00035616,120]
[421246998,1777287126095,-500.0,0.00035616,120]
[421246999,1777287126104,-1044.44,0.00035616,7]
[421247000,1777287126113,-500.0,0.00035616,120]
[421247001,1777287126123,-500.0,0.00035616,120]
[421247002,1777287126132,-500.0,0.00035616,120]
[421247003,1777287126141,-2152.64,0.00035616,120]
[421247004,1777287126151,-500.0,0.00035616,120]
[421247005,1777287126160,-500.0,0.00035616,120]
[421247006,1777287126170,-951.45,0.00035616,120]
[421247007,1777287126180,-10570.76,0.00035616,120]
[421247008,1777287126190,-461.02516125,0.00035616,120]
[421247009,1777287126200,-500.0,0.00035616,120]
[421247010,1777287126210,-953.25,0.00035616,120]
[421247011,1777287126219,-683.94,0.00035616,120]
[421247012,1777287126229,-1457.61,0.00035616,120]
[421247013,1777287126238,-853.59,0.00035616,120]
[421247014,1777287126248,-927.26,0.00035616,120]
[421247015,1777287126257,-692.0,0.00035616,120]
[421247016,1777287126267,-500.0,0.00035616,120]
[421247017,1777287126277,-1072.51,0.00035616,120]
[421247018,1777287126287,-2915.57,0.00035616,120]
[421247019,1777287126297,-500.0,0.00035616,120]
[421247020,1777287126306,-731.44,0.00035616,120]
[421247021,1777287126316,-258.31951681,0.00035616,120]
[421247022,1777287126326,-701.43,0.00035616,120]
[421247023,1777287126335,-500.0,0.00035616,120]
[421247024,1777287126345,-954.88,0.00035616,120]
[421247025,1777287126354,-838.15,0.00035616,120]
[421247026,1777287126364,-1783.16,0.00035616,120]
[421247027,1777287126373,-500.0,0.00035616,120]
[421247028,1777287126383,-500.0,0.00035616,120]
[421247029,1777287126392,-500.0,0.00035616,120]
[421247030,1777287126402,-500.0,0.00035616,120]
[421247031,1777287126411,-4705.11,0.00035616,120]
[421247032,1777287126421,-1730.6,0.00035616,120]
[421247033,1777287126431,-500.0,0.00035616,120]
[421247034,1777287126440,-1123.77,0.00035616,120]
[421247035,1777287126450,-500.0,0.00035616,120]
[421247036,1777287126460,-500.0,0.00035616,120]
[421247037,1777287126469,-1408.68,0.00035616,120]
[421247038,1777287126479,-714.81,0.00035616,120]
[421247039,1777287126488,-1779.59,0.00035616,120]
[421247040,1777287126498,-500.0,0.00035616,120]
[421247041,1777287126508,-5381.05,0.00035616,120]
[421247042,1777287126518,-667.82,0.00035616,120]
[421247043,1777287126528,-922.62,0.00035616,120]
[421247044,1777287126538,-625.44,0.00035616,5]
[421247045,1777287126548,-500.0,0.00035616,120]
[421247046,1777287126558,-1690.78,0.00035616,120]
[421247047,1777287126567,-2035.1,0.00035616,120]
[421247048,1777287126577,-674.61,0.00035616,120]
[421247049,1777287126586,-500.0,0.00035616,120]
[421247050,1777287126596,-1164.41,0.00035616,120]
[421247051,1777287126605,-1082.08,0.00035616,120]
[421247052,1777287126615,-998.96,0.00035616,120]
[421247053,1777287126625,-500.0,0.00035616,120]
[421247054,1777287126634,-1043.04,0.00035616,120]
[421247055,1777287126643,-784.08,0.00035616,120]
[421247056,1777287126653,-1079.64,0.00035616,120]
[421247057,1777287126663,-1143.94,0.00035616,120]
[421247058,1777287126672,-500.0,0.00035616,120]
[421247059,1777287126681,-1451.57,0.00035616,120]
[421247060,1777287126691,-819.21,0.00035616,120]
[421247061,1777287126700,-1138.56,0.00035616,120]
[421247062,1777287126710,-601.09,0.00035616,120]
[421247063,1777287126719,-4201.7,0.00035616,120]
[421247064,1777287126730,-996.55,0.00035616,120]
[421247065,1777287126739,-1047.55,0.00035616,120]
[421247066,1777287126749,-541.91,0.00035616,120]
[421247067,1777287126759,-500.0,0.00035616,120]
[421247068,1777287126768,-500.0,0.00035616,120]
[421247069,1777287126778,-795.18,0.00035616,120]
[421247070,1777287126788,-1162.36,0.00035616,120]
[421247071,1777287126799,-500.0,0.00035616,120]
[421247072,1777287126809,-845.1,0.00035616,120]
[421247073,1777287126820,-500.0,0.00035616,120]
[421247074,1777287126831,-1487.38,0.00035616,120]
[421247075,1777287126840,-500.0,0.00035616,120]
[421247076,1777287126850,-500.0,0.00035616,120]
[421247077,1777287126860,-500.0,0.00035616,120]
[421247078,1777287126870,-898.94,0.00035616,120]
[421247079,1777287126880,-500.0,0.00035616,120]
[421247080,1777287126889,-500.0,0.00035616,120]
[421247081,1777287126899,-2636.09,0.00035616,120]
[421247082,1777287126908,-500.0,0.00035616,120]
[421247083,1777287126918,-500.62,0.00035616,120]
[421247084,1777287126928,-1789.45,0.00035616,120]
[421247085,1777287126938,-500.0,0.00035616,120]
[421247086,1777287126947,-1085.3,0.00035616,120]
[421247087,1777287126957,-892.08,0.00035616,120]
[421247088,1777287126966,-500.0,0.00035616,120]
[421247089,1777287126975,-631.37,0.00035616,120]
[421247090,1777287126984,-581.62,0.00035616,120]
[421247091,1777287126994,-808.43,0.00035616,120]
[421247092,1777287127004,-741.62,0.00035616,120]
[421247093,1777287127013,-500.0,0.00035616,120]
[421247094,1777287127023,-500.0,0.00035616,120]
[421247095,1777287127033,-186.21587638,0.00035616,120]
[421247096,1777287127044,-500.0,0.00035616,120]
[421247097,1777287127054,-762.27,0.00035616,120]
[421247098,1777287127065,-1157.96,0.00035616,120]
[421247099,1777287127075,-633.93,0.00035616,120]
[421247100,1777287127085,-874.69,0.00035616,120]
[421247101,1777287127095,-500.0,0.00035616,120]
[421247102,1777287127104,-900.98,0.00035616,120]
[421247103,1777287127114,-500.0,0.00035616,120]
[421247104,1777287127124,-10204.73,0.00035616,120]
[421247105,1777287127135,-500.0,0.00035616,120]
[421247106,1777287127145,-1526.17,0.00035616,120]
[421247107,1777287127156,-500.0,0.00035616,120]
[421247108,1777287127166,-500.0,0.00035616,120]
[421247109,1777287127176,-891.6,0.00035616,120]
[421247110,1777287127186,-1367.53,0.00035616,120]
[421247111,1777287127197,-500.0,0.00035616,120]
[421247112,1777287127207,-683.25,0.00035616,120]
[421247113,1777287127216,-737.72,0.00035616,120]
[421247114,1777287127227,-500.0,0.00035616,120]
[421247115,1777287127236,-10627.51,0.00035616,11]
[421247116,1777287127246,-1508.4,0.00035616,120]
[421247117,1777287127256,-500.0,0.00035616,120]
[421247118,1777287127357,-944.61,0.00035616,120]
[421247119,1777287127369,-1952.39,0.00035616,120]
[421247120,1777287127379,-992.31,0.00035616,120]
[421247121,1777287127389,-644.32,0.00035616,120]
[421247122,1777287127398,-855.86,0.00035616,120]
[421247123,1777287127409,-938.15,0.00035616,120]
[421247124,1777287127418,-500.0,0.00035616,120]
[421247125,1777287127428,-976.87,0.00035616,120]
[421247126,1777287127437,-500.0,0.00035616,120]
[421247127,1777287127447,-500.0,0.00035616,120]
[421247128,1777287127457,-508.28847604,0.00035616,120]
[421247129,1777287127466,-505.03,0.00035616,120]
[421247130,1777287127475,-889.14,0.00035616,120]
[421247131,1777287127485,-500.0,0.00035616,120]
[421247132,1777287127494,-816.73,0.00035616,120]
[421247133,1777287127504,-624.72,0.00035616,120]
[421247134,1777287127513,-9821.09,0.00035616,14]
[421247135,1777287127523,-523.03,0.00035616,120]
[421247136,1777287127532,-2650.84,0.00035616,2]
[421247137,1777287127542,-500.0,0.00035616,120]
[421247138,1777287127551,-822.98,0.00035616,120]
[421247139,1777287127562,-729.37,0.00035616,120]
[421247140,1777287127572,-1000.0,0.00035616,120]
[421247141,1777287127583,-1044.79,0.00035616,120]
[421247142,1777287127593,-2033.75,0.00035616,120]
[421247143,1777287127603,-2315.34,0.00035616,120]
[421247144,1777287127613,-957.71,0.00035616,120]
[421247145,1777287127622,-651.78,0.00035616,120]
[421247146,1777287127633,-500.0,0.00035616,120]
[421247147,1777287127642,-1144.22,0.00035616,120]
[421247148,1777287127652,-872.94,0.00035616,120]
[421247149,1777287127661,-500.0,0.00035616,120]
[421247150,1777287127671,-905.69,0.00035616,120]
[421247151,1777287127681,-659.77,0.00035616,120]
[421247152,1777287127691,-572.93,0.00035616,120]
[421247153,1777287127700,-526.89,0.00035616,120]
[421247154,1777287127710,-2198.73,0.00035616,31]
[421247155,1777287127720,-936.24,0.00035616,120]
[421247156,1777287127729,-7236.62,0.00035616,120]
[421247157,1777287127739,-601.2,0.00035616,120]
[421247158,1777287127749,-1500.0,0.00035616,120]
[421247159,1777287127759,-500.0,0.00035616,120]
[421247160,1777287127768,-500.0,0.00035616,120]
[421247161,1777287127778,-1282.75,0.00035616,120]
[421247162,1777287127788,-186.01451555,0.00035616,7]
[421247163,1777287127798,-40919.8,0.0003589,120]
[421247164,1777287127809,-5510.884336,0.0003589,120]
[421247165,1777287127819,-406.931409,0.0003589,120]
[421247166,1777287127829,-325.762595,0.0003589,120]
[421247167,1777287127842,-342.964341,0.0003589,120]
[421247168,1777287127852,-2698.281126,0.0003589,120]
[421247169,1777287127862,-276.30246052,0.0003589,90]
[421247170,1777287127872,-500.0,0.0003589,120]
[421247171,1777287127882,-500.0,0.0003589,120]
[421247172,1777287127892,-500.0,0.0003589,120]
[421247173,1777287127902,-500.0,0.0003589,120]
[421247174,1777287127912,-863.36,0.0003589,120]
[421247175,1777287127922,-500.0,0.0003589,2]
[421247176,1777287127931,-500.0,0.0003589,120]
[421247177,1777287127942,-599.06,0.0003589,120]
[421247178,1777287127952,-640.83,0.0003589,120]
[421247179,1777287127962,-500.0,0.0003589,120]
[421247180,1777287127972,-500.0,0.0003589,120]
[421247181,1777287127983,-565.53,0.0003589,120]
[421247182,1777287127992,-1211.95,0.0003589,120]
[421247183,1777287128003,-553.4,0.0003589,120]
[421247184,1777287128012,-715.07,0.0003589,120]
[421247185,1777287128022,-500.0,0.0003589,120]
[421247186,1777287128032,-938.55,0.0003589,120]
[421247187,1777287128043,-1090.36,0.0003589,120]
[421247188,1777287128053,-634.95,0.0003589,120]
[421247189,1777287128064,-500.0,0.0003589,120]
[421247190,1777287128074,-500.0,0.0003589,120]
[421247191,1777287128084,-528.14,0.0003589,120]
[421247192,1777287128094,-500.0,0.0003589,120]
[421247193,1777287128104,-1072.38,0.0003589,120]
[421247194,1777287128114,-1314.31,0.0003589,120]
[421247195,1777287128123,-703.47,0.0003589,120]
[421247196,1777287128133,-500.0,0.0003589,120]
[421247197,1777287128143,-500.0,0.0003589,120]
[421247198,1777287128152,-500.0,0.0003589,120]
[421247199,1777287128163,-500.0,0.0003589,120]
[421247200,1777287128173,-516.81,0.0003589,120]
[421247201,1777287128183,-2357.31,0.0003589,120]
[421247202,1777287128193,-722.01,0.0003589,120]
[421247203,1777287128203,-500.0,0.0003589,120]
[421247204,1777287128214,-500.0,0.0003589,120]
[421247205,1777287128224,-500.0,0.0003589,120]
[421247206,1777287128234,-500.0,0.0003589,120]
[421247207,1777287128245,-1649.9,0.0003589,30]
[421247208,1777287128256,-527.75,0.0003589,120]
[421247209,1777287128266,-500.0,0.0003589,120]
[421247210,1777287128276,-663.98,0.0003589,120]
[421247211,1777287128285,-500.0,0.0003589,120]
[421247212,1777287128295,-752.81,0.0003589,120]
[421247213,1777287128305,-696.22,0.0003589,120]
[421247214,1777287128315,-500.0,0.0003589,120]
[421247215,1777287128324,-500.0,0.0003589,120]
[421247216,1777287128333,-1446.95,0.0003589,120]
[421247217,1777287128347,-964.96,0.0003589,120]
[421247218,1777287128356,-297.74109483,0.0003589,120]
[421247219,1777287128366,-529.41,0.0003589,120]
[421247220,1777287128375,-500.0,0.0003589,120]
[421247221,1777287128384,-500.0,0.0003589,120]
[421247222,1777287128393,-500.0,0.0003589,120]
[421247223,1777287128403,-1077.32,0.0003589,120]
[421247224,1777287128412,-1000.0,0.0003589,120]
[421247225,1777287128422,-949.83,0.0003589,120]
[421247226,1777287128431,-765.4,0.0003589,120]
[421247227,1777287128440,-599.76,0.0003589,120]
[421247228,1777287128449,-500.0,0.0003589,120]
[421247229,1777287128459,-529.38578684,0.0003589,120]
[421247230,1777287128468,-500.0,0.0003589,120]
[421247231,1777287128477,-500.0,0.0003589,120]
[421247232,1777287128486,-812.99,0.0003589,120]
[421247233,1777287128496,-500.0,0.0003589,120]
[421247234,1777287128505,-1319.91,0.0003589,120]
[421247235,1777287128514,-559.35,0.0003589,120]
[421247236,1777287128523,-1706.39,0.0003589,120]
[421247237,1777287128532,-500.0,0.0003589,120]
[421247238,1777287128542,-500.0,0.0003589,120]
[421247239,1777287128551,-500.0,0.0003589,120]
[421247240,1777287128561,-668.63,0.0003589,120]
[421247241,1777287128572,-500.0,0.0003589,120]
[421247242,1777287128581,-1799.8,0.0003589,30]
[421247243,1777287128591,-2310.82,0.0003589,120]
[421247244,1777287128601,-500.0,0.0003589,120]
[421247245,1777287128611,-951.83,0.0003589,120]
[421247246,1777287128620,-500.0,0.0003589,120]
[421247247,1777287128629,-500.0,0.0003589,120]
[421247248,1777287128639,-500.0,0.0003589,120]
[421247249,1777287128648,-500.0,0.0003589,120]
[421247250,1777287128657,-500.0,0.0003589,120]
[421247251,1777287128666,-691.55,0.0003589,120]
[421247252,1777287128675,-500.0,0.0003589,120]
[421247253,1777287128685,-822.42,0.0003589,120]
[421247254,1777287128695,-690.22,0.0003589,120]
[421247255,1777287128704,-1041.51,0.0003589,120]
[421247256,1777287128714,-817.53,0.0003589,120]
[421247257,1777287128723,-500.0,0.0003589,120]
[421247258,1777287128733,-500.0,0.0003589,120]
[421247259,1777287128746,-500.0,0.0003589,120]
[421247260,1777287128755,-812.8,0.0003589,120]
[421247261,1777287128766,-894.99,0.0003589,120]
[421247262,1777287128777,-1018.47,0.0003589,120]
[421247263,1777287128787,-500.0,0.0003589,120]
[421247264,1777287128798,-1560.45,0.0003589,10]
[421247265,1777287128807,-654.65,0.0003589,120]
[421247266,1777287128817,-770.15,0.0003589,120]
[421247267,1777287128827,-747.23,0.0003589,120]
[421247268,1777287128837,-592.21,0.0003589,120]
[421247269,1777287128847,-1047.65,0.0003589,120]
[421247270,1777287128856,-355.67685008,0.0003589,120]
[421247271,1777287128867,-500.0,0.0003589,120]
[421247272,1777287128877,-500.0,0.0003589,120]
[421247273,1777287128887,-548.93,0.0003589,120]
[421247274,1777287128898,-500.0,0.0003589,120]
[421247275,1777287128908,-500.0,0.0003589,120]
[421247276,1777287128918,-500.0,0.0003589,120]
[421247277,1777287128929,-1885.25,0.0003589,120]
[421247278,1777287128938,-632.88,0.0003589,120]
[421247279,1777287128949,-810.82,0.0003589,120]
[421247280,1777287128959,-1242.85,0.0003589,120]
[421247281,1777287128968,-696.25,0.0003589,120]
[421247282,1777287128977,-500.0,0.0003589,120]
[421247283,1777287128987,-277.00961511,0.0003589,120]
[421247284,1777287128997,-1579.01,0.0003589,120]
[421247285,1777287129006,-601.37,0.0003589,120]
[421247286,1777287129017,-1456.44,0.0003589,120]
[421247287,1777287129026,-595.98,0.0003589,120]
[421247288,1777287129036,-1572.92,0.0003589,120]
[421247289,1777287129046,-500.0,0.0003589,120]
[421247290,1777287129056,-1223.21,0.0003589,120]
[421247291,1777287129066,-500.0,0.0003589,120]
[421247292,1777287129075,-500.0,0.0003589,120]
[421247293,1777287129085,-500.0,0.0003589,120]
[421247294,1777287129095,-685.94,0.0003589,120]
[421247295,1777287129105,-996.26,0.0003589,120]
[421247296,1777287129116,-987.31,0.0003589,120]
[421247297,1777287129127,-977.11,0.0003589,120]
[421247298,1777287129137,-1114.4,0.0003589,120]
[421247299,1777287129148,-922.87,0.0003589,120]
[421247300,1777287129159,-694.64,0.0003589,120]
[421247301,1777287129169,-876.6,0.0003589,120]
[421247302,1777287129179,-1292.17,0.0003589,120]
[421247303,1777287129189,-500.0,0.0003589,120]
[421247304,1777287129200,-2804.65,0.0003589,120]
[421247305,1777287129210,-831.75,0.0003589,14]
[421247306,1777287129220,-500.0,0.0003589,120]
[421247307,1777287129230,-500.0,0.0003589,14]
[421247308,1777287129239,-695.08,0.0003589,120]
[421247309,1777287129249,-975.03,0.0003589,120]
[421247310,1777287129259,-571.18275175,0.0003589,120]
[421247311,1777287129269,-500.0,0.0003589,120]
[421247312,1777287129278,-667.25,0.0003589,120]
[421247313,1777287129288,-500.0,0.0003589,120]
[421247314,1777287129297,-367.79277523,0.0003589,120]
[421247315,1777287129307,-500.0,0.0003589,120]
[421247316,1777287129316,-514.22,0.0003589,120]
[421247317,1777287129326,-809.84,0.0003589,120]
[421247318,1777287129335,-500.0,0.0003589,120]
[421247319,1777287129344,-808.81,0.0003589,120]
[421247320,1777287129354,-656.37,0.0003589,120]
[421247321,1777287129363,-924.49,0.0003589,120]
[421247322,1777287129373,-1754.83,0.0003589,120]
[421247323,1777287129383,-816.58,0.0003589,120]
[421247324,1777287129392,-1699.99,0.0003589,120]
[421247325,1777287129402,-963.43,0.0003589,120]
[421247326,1777287129411,-988.21,0.0003589,120]
[421247327,1777287129420,-803.53,0.0003589,120]
[421247328,1777287129430,-500.0,0.0003589,120]
[421247329,1777287129439,-983.75,0.0003589,120]
[421247330,1777287129449,-806.48,0.0003589,120]
[421247331,1777287129458,-1721.56,0.0003589,120]
[421247332,1777287129468,-899.89,0.0003589,120]
[421247333,1777287129477,-1666.52,0.0003589,120]
[421247334,1777287129486,-903.54,0.0003589,120]
[421247335,1777287129495,-640.16,0.0003589,120]
[421247336,1777287129504,-2805.42,0.0003589,120]
[421247337,1777287129514,-500.0,0.0003589,120]
[421247338,1777287129523,-1658.74,0.0003589,120]
[421247339,1777287129533,-507.17,0.0003589,120]
[421247340,1777287129543,-760.12,0.0003589,120]
[421247341,1777287129552,-483.42661997,0.0003589,120]
[421247342,1777287129561,-1131.48,0.0003589,120]
[421247343,1777287129571,-500.0,0.0003589,120]
[421247344,1777287129580,-1275.35,0.0003589,120]
[421247345,1777287129591,-1746.47,0.0003589,120]
[421247346,1777287129600,-1186.63,0.0003589,120]
[421247347,1777287129609,-726.02,0.0003589,120]
[421247348,1777287129619,-857.8,0.0003589,120]
[421247349,1777287129628,-500.0,0.0003589,120]
[421247350,1777287129637,-942.29,0.0003589,120]
[421247351,1777287129647,-888.77,0.0003589,120]
[421247352,1777287129656,-615.52,0.0003589,120]
[421247353,1777287129670,-500.0,0.0003589,120]
[421247354,1777287129680,-691.21,0.0003589,120]
[421247355,1777287129689,-1549.89,0.0003589,120]
[421247356,1777287129699,-597.1,0.0003589,120]
[421247357,1777287129708,-500.0,0.0003589,120]
[421247358,1777287129718,-516.45,0.0003589,120]
[421247359,1777287129728,-646.3,0.0003589,120]
[421247360,1777287129737,-996.25,0.0003589,120]